fUST/lending_fUST_20250530
["ID","MTS","AMOUNT","RATE_DAILY","PERIOD"]
[363087049,1748572256128,-430.0,0.00019178,2]
[363087050,1748572256137,-430.0,0.00019178,2]
[363087051,1748572256147,-335.76720834,0.00019178,2]
[363087052,1748572256158,-94.23279166,0.00019178,2]
[363087053,1748572256168,-492.09595252,0.00019178,2]
[363087054,1748572256178,-430.0,0.00019178,2]
[363087055,1748572256187,-294.82126472,0.00019452,2]
[363087056,1748572256197,-430.0,0.00019452,2]
[363087057,1748572256206,-430.0,0.00019452,2]
[363087058,1748572256216,-430.0,0.00019452,2]
[363087059,1748572256225,-550.74012256,0.00019452,2]
[363087060,1748572256235,-430.0,0.00019726,2]
[363087061,1748572256244,-272.57378799,0.00019726,2]
[363087062,1748572256256,-157.42621201,0.00019726,2]
[363087063,1748572256265,-430.0,0.00019726,2]
[363087064,1748572256277,-412.91224801,0.0002,2]
[363087065,1748572256286,-430.0,0.0002,2]
[363087066,1748572256295,-430.0,0.0002,2]
[363087067,1748572256304,-440.46321292,0.0002,2]
[363087068,1748572256314,-210.91177599,0.0002,2]
[363087069,1748572256326,-242.36240511,0.0002,2]
[363087070,1748572256336,-151.0,0.0002,2]
[363087071,1748572256346,-180.740501,0.0002,2]
[363087072,1748572256355,-180.740501,0.0002,2]
[363087073,1748572256365,-458.75294867,0.0002,2]
[363087074,1748572256374,-430.0,0.0002,2]
[363087075,1748572256384,-430.0,0.0002,2]
[363087076,1748572256393,-430.0,0.0002,2]
[363087077,1748572256403,-448.55846196,0.0002,2]
[363087078,1748572256412,-448.30882688,0.0002,2]
[363087079,1748572256422,-444.30203634,0.0002,2]
[363087080,1748572256431,-731.502552,0.0002,2]
[363087081,1748572256441,-731.502552,0.0002,2]
[363087082,1748572256451,-449.17462273,0.0002,2]
[363087083,1748572256460,-430.0,0.0002,2]
[363087084,1748572256470,-430.0,0.0002,2]
[363087085,1748572256479,-574.03072768,0.0002,2]
[363087086,1748572256489,-989.49,0.0002,2]
[363087087,1748572256499,-430.0,0.0002,2]
[363087088,1748572256508,-436.89510915,0.0002,2]
[363087089,1748572256518,-455.67172874,0.0002,2]
[363087090,1748572256528,-435.71122336,0.0002,2]
[363087091,1748572256538,-441.33588742,0.0002,2]
[363087092,1748572256548,-430.0,0.0002,2]
[363087093,1748572256558,-457.84,0.0002,2]
[363087094,1748572256568,-305.201031,0.0002,2]
[363087095,1748572256578,-430.0,0.0002,2]
[363087096,1748572256588,-305.201031,0.0002,2]
[363087097,1748572256598,-376.66094103,0.0002,2]
[363087098,1748572256607,-668.64,0.0002,2]
[363087099,1748572256617,-479.98442315,0.0002,2]
[363087100,1748572256627,-477.42,0.0002,2]
[363087101,1748572256637,-151.0,0.0002,2]
[363087102,1748572256646,-151.90007383,0.0002,2]
[363087103,1748572256655,-430.0,0.0002,2]
[363087104,1748572256665,-444.9063548,0.0002,2]
[363087105,1748572256674,-430.0,0.0002,2]
[363087106,1748572256684,-1307.48,0.0002,2]
[363087107,1748572256697,-851.55374382,0.0002,2]
[363087108,1748572256710,-918.51625618,0.0002,2]
[363087109,1748572256719,-430.0,0.0002,2]
[363087110,1748572256730,-75.83624511,0.0002,2]
[363087144,1748572857835,183.85,0.00015848,2]
[363087146,1748572928424,179.72,0.00015181,2]
[363087147,1748572929483,239.63,0.00015841,2]
[363087148,1748572999585,179.37,0.0001517,2]
[363087149,1748573000030,239.16,0.0001583,2]
[363087151,1748573070392,179.55,0.00015558,2]
[363087152,1748573142755,201.13,0.00015194,2]
[363087153,1748573143189,268.17,0.00015855,2]
[363087154,1748573149477,2200.0,0.00021918,60]
[363087155,1748573167622,2145.0,0.00021918,60]
[363087156,1748573213283,175.53,0.00015207,2]
[363087157,1748573213773,234.04,0.00015868,2]
[363087158,1748573249107,-702.56484226,0.00016161,2]
[363087159,1748573249129,-212.57425911,0.00016415,2]
[363087160,1748573249152,-292.55,0.00016529,2]
[363087161,1748573249172,-194.916552,0.00016922,2]
[363087162,1748573249195,-351.06,0.0001719,2]
[363087163,1748573249216,-300.0,0.00017291,2]
[363087164,1748573249242,-8615.80639844,0.00017292,2]
[363087166,1748573288941,137.10189613,0.00015202,2]
[363087167,1748573288963,63.57810387,0.00015202,2]
[363087168,1748573289353,267.58,0.00015863,2]
[363087170,1748573350151,-334.47,0.00016524,2]
[363087171,1748573350172,-779.879093,0.00016964,2]
[363087172,1748573350194,-1198.1522328,0.00017155,2]
[363087173,1748573350217,-401.36,0.00017185,2]
[363087174,1748573350237,-233.92612084,0.00017193,2]
[363087175,1748573350260,-300.0,0.00017291,2]
[363087176,1748573350282,-16284.19360156,0.00017292,2]
[363087177,1748573350303,-1782.32225,0.00017445,2]
[363087178,1748573350327,-5162.3273018,0.00017452,2]
[363087179,1748573359624,186.19,0.00015275,2]
[363087180,1748573360046,248.26,0.00015939,2]
[363087181,1748573368152,-310.32,0.00016603,2]
[363087182,1748573368175,-372.39,0.00017267,2]
[363087183,1748573368202,-205.88251107,0.00017452,2]
[363087184,1748573430650,198.55,0.00015926,2]
[363087254,1748573432414,-248.19,0.0001659,2]
[363087257,1748573432429,-297.82,0.00017254,2]
[363087259,1748573432443,-116.01278333,0.00017452,2]
[363087262,1748573432455,-311.486375,0.00017591,2]
[363087264,1748573432468,-347.46,0.00017917,2]
[363087266,1748573432481,-1200.0,0.00017999,2]
[363087269,1748573432495,-300.0,0.00018,2]
[363087271,1748573432507,-300.0,0.00018,2]
[363087273,1748573432519,-300.0,0.00018,2]
[363087276,1748573432531,-300.0,0.00018,2]
[363087278,1748573432543,-300.0,0.00018,2]
[363087280,1748573432557,-160.0,0.00018001,2]
[363087283,1748573432573,-32325.19482681,0.00018001,2]
[363087286,1748573432590,-3434.68786572,0.00018001,2]
[363087289,1748573432607,-5179.06551488,0.00018001,2]
[363087291,1748573432623,-600.00000025,0.00018001,2]
[363087294,1748573432637,-461.4225,0.00018001,2]
[363087296,1748573432651,-1535.41964536,0.00018001,2]
[363087303,1748573432707,-3212.34858935,0.00018001,2]
[363087307,1748573432738,-3251.86105763,0.00018001,2]
[363087310,1748573432749,-686.07954139,0.00018035,2]
[363087312,1748573432762,-2322.3806518,0.00018135,2]
[363087314,1748573432775,-300.0,0.00018262,2]
[363087317,1748573432787,-241.422729,0.00018332,2]
[363087319,1748573432799,-232.70940266,0.00018333,2]
[363087321,1748573432809,-686.07954135,0.00018991,2]
[363087323,1748573432821,-500.0,0.00018997,2]
[363087325,1748573432833,-203.0260781,0.00018997,2]
[363087328,1748573432845,-500.0,0.00018997,2]
[363087330,1748573432856,-500.0,0.00018997,2]
[363087332,1748573432868,-500.0,0.00018997,2]
[363087335,1748573432880,-500.0,0.00018997,2]
[363087337,1748573432892,-500.0,0.00018997,2]
[363087339,1748573432904,-500.0,0.00018997,2]
[363087341,1748573432915,-500.0,0.00018997,2]
[363087344,1748573432927,-500.0,0.00018997,2]
[363087346,1748573432938,-500.0,0.00018997,2]
[363087348,1748573432950,-495.44691394,0.00018997,2]
[363087350,1748573432961,-500.0,0.00018997,2]
[363087353,1748573432974,-500.0,0.00018997,2]
[363087355,1748573432986,-500.0,0.00018997,2]
[363087357,1748573432997,-500.0,0.00018997,2]
[363087359,1748573433009,-500.0,0.00018997,2]
[363087362,1748573433022,-500.0,0.00018997,2]
[363087364,1748573433033,-500.0,0.00018997,2]
[363087366,1748573433046,-202.72803427,0.00018997,2]
[363087368,1748573433058,-500.0,0.00018997,2]
[363087371,1748573433075,-500.0,0.00018997,2]
[363087373,1748573433087,-500.0,0.00018997,2]
[363087375,1748573433099,-500.0,0.00018997,2]
[363087378,1748573433111,-191.22526236,0.00018997,2]
[363087380,1748573433123,-500.0,0.00018997,2]
[363087382,1748573433135,-500.0,0.00018997,2]
[363087384,1748573433147,-500.0,0.00018997,2]
[363087387,1748573433160,-500.0,0.00018997,2]
[363087389,1748573433172,-500.0,0.00018997,2]
[363087391,1748573433184,-500.0,0.00018997,2]
[363087393,1748573433197,-500.0,0.00018997,2]
[363087396,1748573433209,-500.0,0.00018997,2]
[363087398,1748573433221,-500.0,0.00018997,2]
[363087400,1748573433233,-500.0,0.00018997,2]
[363087403,1748573433245,-500.0,0.00018997,2]
[363087405,1748573433257,-500.0,0.00018997,2]
[363087407,1748573433269,-500.0,0.00018997,2]
[363087409,1748573433282,-588.76831017,0.00018997,2]
[363087412,1748573433294,-500.0,0.00018997,2]
[363087414,1748573433306,-500.0,0.00018997,2]
[363087416,1748573433318,-500.0,0.00018997,2]
[363087418,1748573433329,-500.0,0.00018997,2]
[363087421,1748573433341,-500.0,0.00018997,2]
[363087423,1748573433354,-500.0,0.00018997,2]
[363087425,1748573433366,-500.0,0.00018997,2]
[363087427,1748573433378,-500.0,0.00018997,2]
[363087430,1748573433391,-500.0,0.00018997,2]
[363087432,1748573433401,-422.48095218,0.00018997,2]
[363087434,1748573433411,-500.0,0.00018997,2]
[363087436,1748573433420,-500.0,0.00018997,2]
[363087438,1748573433429,-500.0,0.00018997,2]
[363087440,1748573433438,-500.0,0.00018997,2]
[363087442,1748573433448,-500.0,0.00018997,2]
[363087461,1748573433634,-500.0,0.00018997,2]
[363087462,1748573433649,-500.0,0.00018997,2]
[363087464,1748573433659,-500.0,0.00018997,2]
[363087466,1748573433668,-500.0,0.00018997,2]
[363087468,1748573433678,-500.0,0.00018997,2]
[363087470,1748573433688,-500.0,0.00018997,2]
[363087472,1748573433697,-500.0,0.00018997,2]
[363087474,1748573433707,-500.0,0.00018997,2]
[363087476,1748573433716,-500.0,0.00018997,2]
[363087478,1748573433726,-500.0,0.00018997,2]
[363087480,1748573433735,-500.0,0.00018997,2]
[363087482,1748573433744,-500.0,0.00018997,2]
[363087484,1748573433753,-250.33269345,0.00018997,2]
[363087486,1748573433762,-500.0,0.00018997,2]
[363087488,1748573433771,-500.0,0.00018997,2]
[363087490,1748573433779,-500.0,0.00018998,2]
[363087492,1748573433789,-269.19536329,0.00018998,2]
[363087493,1748573433798,-393.22473752,0.00018998,2]
[363087495,1748573433807,-500.0,0.00018998,2]
[363087497,1748573433815,-500.0,0.00018998,2]
[363087499,1748573433824,-500.0,0.00018998,2]
[363087501,1748573433833,-500.0,0.00018998,2]
[363087503,1748573433843,-452.35851778,0.00018998,2]
[363087505,1748573433852,-514.05714989,0.00018999,2]
[363087507,1748573433862,-213821.54194799,0.00019,2]
[363087509,1748573433871,-1291.42115659,0.00019078,2]
[363087511,1748573433880,-500.0,0.00019173,2]
[363087513,1748573433891,-177.77189404,0.00019173,2]
[363087515,1748573433901,-500.0,0.00019173,2]
[363087517,1748573433911,-189.63934213,0.00019173,2]
[363087519,1748573433920,-511.35442707,0.00019173,2]
[363087521,1748573433930,-521.75384958,0.00019173,2]
[363087523,1748573433940,-500.0,0.00019173,2]
[363087525,1748573433950,-597.39684857,0.00019173,2]
[363087527,1748573433960,-501.66807796,0.00019173,2]
[363087529,1748573433970,-428.67864138,0.00019173,2]
[363087531,1748573433979,-82.90861825,0.00019173,2]
[363087550,1748573434163,-401.0,0.00019173,2]
[363087832,1748573438127,-397.1,0.00018581,2]
[363087833,1748573438137,-977.17710471,0.00018998,2]
[363087834,1748573438149,-977.17710471,0.00018998,2]
[363087835,1748573438159,-977.17710471,0.00018998,2]
[363087836,1748573438169,-977.17710471,0.00018998,2]
[363087837,1748573438178,-977.17710471,0.00018998,2]
[363087838,1748573438188,-977.17710471,0.00018998,2]
[363087839,1748573438197,-38.63435057,0.00018998,2]
[363087840,1748573438209,-938.54275414,0.00018998,2]
[363087841,1748573438218,-500.0,0.00018998,2]
[363087842,1748573438228,-480.3892323,0.00018998,2]
[363087843,1748573438240,-496.78787241,0.00018998,2]
[363087844,1748573438249,-500.0,0.00018998,2]
[363087845,1748573438259,-977.17710471,0.00018998,2]
[363087846,1748573438268,-185.86836655,0.00018998,2]
[363087847,1748573438278,-977.17710471,0.00018998,2]
[363087848,1748573438288,-977.17710471,0.00018998,2]
[363087849,1748573438297,-977.17710471,0.00018998,2]
[363087850,1748573438306,-977.17710471,0.00018998,2]
[363087851,1748573438316,-977.17710471,0.00018998,2]
[363087852,1748573438325,-977.17710471,0.00018998,2]
[363087853,1748573438334,-977.17710471,0.00018998,2]
[363087854,1748573438344,-977.17710471,0.00018998,2]
[363087855,1748573438354,-977.17710472,0.00018998,2]
[363087856,1748573438363,-16.60700231,0.00019173,2]
[363087857,1748573438373,-240.89003592,0.00019173,2]
[363087858,1748573438386,-262.3600078,0.00019173,2]
[363087859,1748573438395,-501.54907328,0.00019173,2]
[363087860,1748573438406,-500.0,0.00019173,2]
[363087861,1748573438415,-500.0,0.00019173,2]
[363087862,1748573438424,-403.52369489,0.00019178,2]
[363087864,1748573438434,-430.0,0.00019178,2]
[363087866,1748573438444,-30.79941924,0.00019178,2]
[363087869,1748573438457,-167.08816316,0.00019178,2]
[363087871,1748573438467,-430.0,0.00019178,2]
[363087872,1748573438476,-408.35716124,0.00019178,2]
[363087875,1748573438486,-193.01451958,0.00019178,2]
[363087876,1748573438495,-430.0,0.00019178,2]
[363087878,1748573438504,-406.96988158,0.00019178,2]
[363087880,1748573438513,-430.0,0.00019178,2]
[363087882,1748573438524,-430.0,0.00019178,2]
[363087884,1748573438534,-450.0,0.00019178,2]
[363087886,1748573438543,-430.0,0.00019178,2]
[363087888,1748573438553,-430.0,0.00019178,2]
[363087890,1748573438562,-430.0,0.00019178,2]
[363087892,1748573438571,-444.79274708,0.00019178,2]
[363087895,1748573438582,-430.0,0.00019178,2]
[363087897,1748573438592,-430.0,0.00019178,2]
[363087899,1748573438601,-521.07179917,0.00019178,2]
[363087901,1748573438611,-430.0,0.00019178,2]
[363087903,1748573438620,-430.0,0.00019178,2]
[363087905,1748573438630,-434.65648036,0.00019178,2]
[363087907,1748573438640,-435.12809439,0.00019178,2]
[363087909,1748573438648,-430.0,0.00019178,2]
[363087911,1748573438657,-164.07395301,0.00019178,2]
[363087913,1748573438666,-430.0,0.00019178,2]
[363087915,1748573438675,-430.0,0.00019178,2]
[363087917,1748573438685,-430.0,0.00019178,2]
[363087919,1748573438695,-430.0,0.00019178,2]
[363087920,1748573438704,-282.74835512,0.00019178,2]
[363087921,1748573438712,-430.0,0.00019178,2]
[363087922,1748573438721,-430.0,0.00019178,2]
[363087923,1748573438730,-430.0,0.00019178,2]
[363087924,1748573438740,-430.0,0.00019178,2]
[363087925,1748573438748,-430.0,0.00019178,2]
[363087926,1748573438757,-430.0,0.00019178,2]
[363087927,1748573438766,-430.0,0.00019178,2]
[363087928,1748573438775,-430.0,0.00019178,2]
[363087929,1748573438784,-430.0,0.00019178,2]
[363087930,1748573438792,-430.0,0.00019178,2]
[363087931,1748573438801,-375.04450095,0.00019178,2]
[363087932,1748573438810,-430.0,0.00019178,2]
[363087933,1748573438819,-527.27408255,0.00019178,2]
[363087934,1748573438829,-430.0,0.00019178,2]
[363087935,1748573438838,-430.0,0.00019178,2]
[363087936,1748573438846,-430.0,0.00019178,2]
[363087937,1748573438855,-430.0,0.00019178,2]
[363087938,1748573438864,-430.0,0.00019178,2]
[363087939,1748573438872,-430.0,0.00019178,2]
[363087940,1748573438881,-430.0,0.00019178,2]
[363087941,1748573438890,-450.0,0.00019178,2]
[363087942,1748573438899,-430.0,0.00019178,2]
[363087943,1748573438907,-430.0,0.00019178,2]
[363087944,1748573438916,-430.0,0.00019178,2]
[363087945,1748573438925,-475.30041474,0.00019178,2]
[363087947,1748573438935,-430.0,0.00019178,2]
[363087948,1748573438944,-430.0,0.00019178,2]
[363087951,1748573438954,-476.68554439,0.00019178,2]
[363087953,1748573438963,-430.0,0.00019178,2]
[363087954,1748573438972,-430.0,0.00019178,2]
[363087956,1748573438982,-511.84167235,0.00019178,2]
[363087958,1748573438991,-430.0,0.00019178,2]
[363087960,1748573439000,-402.07658333,0.00019178,2]
[363087963,1748573439010,-430.0,0.00019178,2]
[363087965,1748573439025,-570.0,0.00019178,2]
[363087967,1748573439039,-430.0,0.00019178,2]
[363087970,1748573439049,-430.0,0.00019178,2]
[363087972,1748573439060,-430.0,0.00019178,2]
[363087974,1748573439072,-430.0,0.00019178,2]
[363087976,1748573439082,-430.0,0.00019178,2]
[363087978,1748573439091,-430.0,0.00019178,2]
[363087980,1748573439102,-430.0,0.00019178,2]
[363087982,1748573439111,-430.0,0.00019178,2]
[363087984,1748573439121,-431.66243708,0.00019178,2]
[363087986,1748573439131,-430.0,0.00019178,2]
[363087988,1748573439141,-387.21341055,0.00019178,2]
[363087990,1748573439150,-430.0,0.00019178,2]
[363087992,1748573439160,-430.0,0.00019178,2]
[363087994,1748573439169,-430.0,0.00019178,2]
[363087996,1748573439178,-430.0,0.00019178,2]
[363087998,1748573439189,-430.0,0.00019178,2]
[363088000,1748573439198,-466.94468156,0.00019178,2]
[363088002,1748573439209,-430.0,0.00019178,2]
[363088004,1748573439219,-222.25942535,0.00019178,2]
[363088006,1748573439228,-430.0,0.00019178,2]
[363088008,1748573439238,-430.0,0.00019178,2]
[363088010,1748573439247,-430.0,0.00019178,2]
[363088012,1748573439257,-500.0,0.00019178,2]
[363088014,1748573439267,-1015.55,0.00019178,2]
[363088016,1748573439276,-430.0,0.00019178,2]
[363088018,1748573439289,-400.0,0.00019178,2]
[363088020,1748573439300,-400.0,0.00019178,2]
[363088022,1748573439309,-400.0,0.00019178,2]
[363088024,1748573439320,-430.0,0.00019178,2]
[363088026,1748573439330,-450.0,0.00019178,2]
[363088029,1748573439341,-430.0,0.00019178,2]
[363088031,1748573439351,-430.0,0.00019178,2]
[363088033,1748573439362,-430.0,0.00019178,2]
[363088035,1748573439371,-430.0,0.00019178,2]
[363088037,1748573439381,-430.0,0.00019178,2]
[363088039,1748573439391,-458.17191078,0.00019178,2]
[363088041,1748573439401,-430.0,0.00019178,2]
[363088043,1748573439410,-430.0,0.00019178,2]
[363088045,1748573439419,-430.0,0.00019178,2]
[363088047,1748573439428,-591.44,0.00019178,2]
[363088049,1748573439437,-430.0,0.00019178,2]
[363088051,1748573439446,-410.43489461,0.00019178,2]
[363088053,1748573439455,-430.0,0.00019178,2]
[363088055,1748573439464,-430.0,0.00019178,2]
[363088057,1748573439474,-464.28194219,0.00019178,2]
[363088059,1748573439483,-430.0,0.00019178,2]
[363088061,1748573439492,-521.91691483,0.00019178,2]
[363088063,1748573439502,-402.77944691,0.00019178,2]
[363088065,1748573439511,-430.0,0.00019178,2]
[363088067,1748573439520,-430.0,0.00019178,2]
[363088069,1748573439537,-430.0,0.00019178,2]
[363088071,1748573439558,-430.0,0.00019178,2]
[363088073,1748573439567,-451.94504797,0.00019178,2]
[363088075,1748573439575,-588.0,0.00019178,2]
[363088077,1748573439584,-461.48575296,0.00019178,2]
[363088079,1748573439591,-430.0,0.00019178,2]
[363088081,1748573439599,-458.52613197,0.00019178,2]
[363088083,1748573439608,-430.0,0.00019178,2]
[363088085,1748573439616,-403.51688909,0.00019178,2]
[363088087,1748573439625,-430.0,0.00019178,2]
[363088089,1748573439634,-500.0,0.00019178,2]
[363088091,1748573439641,-430.0,0.00019178,2]
[363088094,1748573439649,-430.0,0.00019178,2]
[363088096,1748573439658,-340.0,0.00019178,2]
[363088098,1748573439668,-372.94920789,0.00019178,2]
[363088100,1748573439680,-186.31794752,0.00019178,2]
[363088102,1748573439691,-430.0,0.00019178,2]
[363088104,1748573439699,-439.99484291,0.00019178,2]
[363088106,1748573439710,-430.0,0.00019178,2]
[363088108,1748573439719,-430.0,0.00019178,2]
[363088110,1748573439728,-430.0,0.00019178,2]
[363088112,1748573439736,-500.0,0.00019178,2]
[363088114,1748573439745,-430.0,0.00019178,2]
[363088116,1748573439755,-430.0,0.00019178,2]
[363088119,1748573439765,-430.0,0.00019178,2]
[363088122,1748573439774,-1018.18213233,0.00019178,2]
[363088125,1748573439784,-430.0,0.00019178,2]
[363088128,1748573439794,-529.32403103,0.00019178,2]
[363088131,1748573439804,-431.46690684,0.00019178,2]
[363088134,1748573439813,-430.0,0.00019178,2]
[363088137,1748573439824,-430.0,0.00019178,2]
[363088140,1748573439833,-430.0,0.00019178,2]
[363088143,1748573439845,-430.0,0.00019178,2]
[363088146,1748573439854,-430.0,0.00019178,2]
[363088150,1748573439864,-430.0,0.00019178,2]
[363088153,1748573439874,-400.0,0.00019178,2]
[363088156,1748573439882,-430.0,0.00019178,2]
[363088159,1748573439891,-430.0,0.00019178,2]
[363088162,1748573439901,-430.0,0.00019178,2]
[363088165,1748573439911,-430.0,0.00019178,2]
[363088168,1748573439919,-430.0,0.00019178,2]
[363088171,1748573439929,-430.0,0.00019178,2]
[363088174,1748573439939,-430.0,0.00019178,2]
[363088177,1748573439949,-430.0,0.00019178,2]
[363088180,1748573439958,-430.0,0.00019178,2]
[363088183,1748573439968,-430.0,0.00019178,2]
[363088186,1748573439978,-430.0,0.00019178,2]
[363088189,1748573439987,-430.0,0.00019178,2]
[363088192,1748573439996,-430.0,0.00019178,2]
[363088196,1748573440006,-430.0,0.00019178,2]
[363088199,1748573440016,-430.0,0.00019178,2]
[363088202,1748573440026,-430.0,0.00019178,2]
[363088205,1748573440036,-404.13054596,0.00019178,2]
[363088208,1748573440046,-470.0,0.00019178,2]
[363088211,1748573440055,-430.0,0.00019178,2]
[363088213,1748573440066,-430.0,0.00019178,2]
[363088216,1748573440075,-430.0,0.00019178,2]
[363088219,1748573440084,-404.18183585,0.00019178,2]
[363088222,1748573440094,-500.0,0.00019178,2]
[363088225,1748573440104,-500.0,0.00019178,2]
[363088228,1748573440113,-500.0,0.00019178,2]
[363088232,1748573440122,-500.0,0.00019178,2]
[363088235,1748573440134,-500.0,0.00019178,2]
[363088238,1748573440144,-500.0,0.00019178,2]
[363088241,1748573440154,-500.0,0.00019178,2]
[363088244,1748573440163,-500.0,0.00019178,2]
[363088246,1748573440172,-500.0,0.00019178,2]
[363088248,1748573440181,-500.0,0.00019178,2]
[363088250,1748573440191,-430.0,0.00019178,2]
[363088252,1748573440200,-430.0,0.00019178,2]
[363088254,1748573440209,-430.0,0.00019178,2]
[363088257,1748573440218,-430.0,0.00019178,2]
[363088260,1748573440227,-479.73485413,0.00019178,2]
[363088263,1748573440236,-301.37178757,0.00019178,2]
[363088266,1748573440246,-430.0,0.00019178,2]
[363088269,1748573440255,-430.0,0.00019178,2]
[363088272,1748573440264,-430.0,0.00019178,2]
[363088304,1748573440418,-430.0,0.00019178,2]
[363088307,1748573440428,-430.0,0.00019178,2]
[363088310,1748573440438,-451.11086048,0.00019178,2]
[363088313,1748573440447,-430.0,0.00019178,2]
[363088316,1748573440456,-430.0,0.00019178,2]
[363088319,1748573440466,-430.0,0.00019178,2]
[363088322,1748573440475,-430.0,0.00019178,2]
[363088325,1748573440485,-430.0,0.00019178,2]
[363088328,1748573440494,-430.0,0.00019178,2]
[363088331,1748573440503,-430.0,0.00019178,2]
[363088334,1748573440512,-430.0,0.00019178,2]
[363088337,1748573440521,-472.96396673,0.00019178,2]
[363088340,1748573440531,-430.0,0.00019178,2]
[363088343,1748573440540,-430.0,0.00019178,2]
[363088346,1748573440550,-437.11880945,0.00019178,2]
[363088349,1748573440559,-430.0,0.00019178,2]
[363088352,1748573440568,-430.0,0.00019178,2]
[363088353,1748573440578,-160.19330124,0.00019178,2]
[363088356,1748573440587,-430.0,0.00019178,2]
[363088359,1748573440596,-430.0,0.00019178,2]
[363088362,1748573440605,-493.71,0.00019178,2]
[363088365,1748573440616,-430.0,0.00019178,2]
[363088368,1748573440625,-430.0,0.00019178,2]
[363088371,1748573440635,-385.38695324,0.00019178,2]
[363088375,1748573440645,-430.0,0.00019178,2]
[363088378,1748573440655,-450.0,0.00019178,2]
[363088380,1748573440664,-651.13,0.00019178,2]
[363088384,1748573440673,-453.49058654,0.00019178,2]
[363088387,1748573440683,-500.0,0.00019178,2]
[363088390,1748573440692,-430.0,0.00019178,2]
[363088393,1748573440702,-430.0,0.00019178,2]
[363088396,1748573440712,-401.22184064,0.00019178,2]
[363088399,1748573440720,-430.0,0.00019178,2]
[363088402,1748573440730,-430.0,0.00019178,2]
[363088405,1748573440739,-430.0,0.00019178,2]
[363088408,1748573440748,-430.0,0.00019178,2]
[363088411,1748573440758,-430.0,0.00019178,2]
[363088413,1748573440767,-430.0,0.00019178,2]
[363088416,1748573440777,-400.0,0.00019178,2]
[363088420,1748573440787,-430.0,0.00019178,2]
[363088422,1748573440797,-430.0,0.00019178,2]
[363088426,1748573440807,-312.89466757,0.00019178,2]
[363088429,1748573440816,-430.0,0.00019178,2]
[363088432,1748573440825,-350.0,0.00019178,2]
[363088434,1748573440834,-430.0,0.00019178,2]
[363088437,1748573440845,-430.0,0.00019178,2]
[363088440,1748573440854,-430.0,0.00019178,2]
[363088444,1748573440864,-430.0,0.00019178,2]
[363088447,1748573440873,-430.0,0.00019178,2]
[363088449,1748573440882,-430.0,0.00019178,2]
[363088452,1748573440892,-430.0,0.00019178,2]
[363088455,1748573440902,-430.0,0.00019178,2]
[363088458,1748573440912,-430.0,0.00019178,2]
[363088461,1748573440922,-430.0,0.00019178,2]
[363088464,1748573440932,-453.78898556,0.00019178,2]
[363088467,1748573440941,-430.0,0.00019178,2]
[363088468,1748573440951,-430.0,0.00019178,2]
[363088470,1748573440960,-430.0,0.00019178,2]
[363088472,1748573440970,-430.0,0.00019178,2]
[363088477,1748573440988,-430.0,0.00019178,2]
[363088481,1748573440999,-434.54973779,0.00019178,2]